bitfinex-derivatives/quotes_BTCF0:USTF0_20250716
["timestamp","ask_amount","ask_price","bid_price","bid_amount"]
[1752631787064,0.64644879,117610.0,117600.0,0.7738455]
[1752631787966,0.64644879,117610.0,117600.0,1.06054051]
[1752631788156,0.5397711,117610.0,117600.0,1.06054051]
[1752631791572,0.1789711,117610.0,117600.0,1.06054051]
[1752631792169,0.1789711,117610.0,117600.0,0.7738455]
[1752631792977,0.1789711,117610.0,117600.0,1.06054051]
[1752631794671,0.1789711,117610.0,117600.0,0.94564296]
[1752631795062,0.1789711,117610.0,117600.0,0.45674051]
[1752631795370,0.1770355,117600.0,117590.0,0.8576806]
[1752631795566,0.30245273,117600.0,117590.0,0.8576806]
[1752631795969,0.19581071,117600.0,117590.0,0.8576806]
[1752631796170,0.10193232,117600.0,117590.0,1.14437561]
[1752631797270,0.02576521,117600.0,117590.0,1.14437561]
[1752631797464,0.19881071,117600.0,117590.0,1.14537561]
[1752631797967,0.02876521,117600.0,117590.0,1.50617561]
[1752631798170,0.10493433,117600.0,117590.0,1.50617561]
[1752631798968,0.10493433,117600.0,117590.0,1.14537561]
[1752631799369,0.10493433,117600.0,117590.0,1.50617561]
[1752631802371,0.13540723,117600.0,117590.0,1.50617561]
[1752631802969,0.13540723,117600.0,117590.0,1.2194806]
[1752631803273,0.13540723,117600.0,117590.0,1.50617561]
[1752631804375,0.30545273,117600.0,117590.0,1.14537561]
[1752631804574,0.13540723,117600.0,117590.0,1.14537561]
[1752631804874,0.13540723,117600.0,117590.0,1.50617561]
[1752631807178,0.02876521,117600.0,117590.0,1.50617561]
[1752631807377,0.19881071,117600.0,117590.0,1.25109501]
[1752631807569,0.02876521,117600.0,117590.0,1.06035491]
[1752631809074,0.02876521,117600.0,117590.0,1.42115491]
[1752631809274,0.02876521,117600.0,117590.0,1.06035491]
[1752631809469,0.02876521,117600.0,117590.0,1.42115491]
[1752631810074,0.19881071,117600.0,117590.0,1.42115491]
[1752631810279,0.19881071,117600.0,117590.0,1.06035491]
[1752631811882,0.30555062,117600.0,117590.0,1.06035491]
[1752631812070,0.66635062,117600.0,117590.0,0.1710599]
[1752631812271,0.59224563,117600.0,117590.0,0.1710599]
[1752631812574,0.84630572,117600.0,117590.0,0.001]
[1752631812774,1.08770572,117600.0,117590.0,0.001]
[1752631812980,1.08770572,117600.0,117590.0,0.1710599]
[1752631813181,1.16181071,117600.0,117590.0,0.1710599]
[1752631813477,1.31396274,117600.0,117590.0,0.1710599]
[1752631813677,1.31396274,117600.0,117590.0,0.001]
[1752631814082,1.60065775,117600.0,117590.0,0.001]
[1752631814277,1.44850572,117600.0,117590.0,0.1710599]
[1752631814478,1.55521633,117600.0,117590.0,0.1710599]
[1752631814977,1.55521633,117600.0,117590.0,0.001]
[1752631815178,1.26852132,117600.0,117590.0,0.001]
[1752631815380,1.55521633,117600.0,117590.0,0.001]
[1752631817182,1.52473832,117600.0,117590.0,0.001]
[1752631818084,1.16393832,117600.0,117590.0,0.001]
[1752631818286,1.16393832,117600.0,117590.0,0.1710599]
[1752631818582,1.52473832,117600.0,117590.0,0.1710599]
[1752631818785,1.23804331,117600.0,117590.0,0.001]
[1752631820789,1.52473832,117600.0,117590.0,0.001]
[1752631821780,1.44850572,117600.0,117590.0,0.001]
[1752631821984,1.55521633,117600.0,117590.0,0.001]
[1752631823087,1.26852132,117600.0,117590.0,0.001]
[1752631823890,1.55521633,117600.0,117590.0,0.001]
[1752631824193,1.26852132,117600.0,117590.0,0.001]
[1752631824394,1.16181071,117600.0,117590.0,0.001]
[1752631826482,1.16181071,117600.0,117590.0,0.1710595]
[1752631829088,1.16181071,117600.0,117590.0,0.001]
[1752631831191,1.37680946,117600.0,117590.0,0.21599875]
[1752631832094,1.52896149,117600.0,117590.0,0.21599875]
[1752631832581,1.74396024,117600.0,117590.0,0.21599875]
[1752631832785,1.63566691,117600.0,117590.0,0.001]
[1752631833092,1.63566691,117600.0,117590.0,0.21599875]
[1752631833293,1.63566691,117600.0,117590.0,0.001]
[1752631833591,1.48351488,117600.0,117590.0,0.21599875]
[1752631834190,1.69851363,117600.0,117590.0,0.21599875]
[1752631835189,1.48351488,117600.0,117590.0,0.21599875]
[1752631835689,1.59180821,117600.0,117590.0,0.21599875]
[1752631836001,1.37680946,117600.0,117590.0,0.21599875]
[1752631836896,1.37680946,117600.0,117590.0,0.38605815]
[1752631837098,1.37680946,117600.0,117590.0,0.21599875]
[1752631838295,1.37680946,117600.0,117590.0,0.38605825]
[1752631838487,0.77460946,117600.0,117590.0,0.38605825]
[1752631838692,1.37620946,117600.0,117590.0,0.38605825]
[1752631839402,1.37620946,117600.0,117590.0,0.21599875]
[1752631840595,1.48300903,117600.0,117590.0,0.21599875]
[1752631840803,1.37620946,117600.0,117590.0,0.21599875]
[1752631841290,1.01540946,117600.0,117590.0,0.38605815]
[1752631841495,1.09171884,117600.0,117590.0,0.38605815]
[1752631841998,1.09171884,117600.0,117590.0,0.21599875]
[1752631842900,1.09171884,117600.0,117590.0,0.38605815]
[1752631843100,1.09171884,117600.0,117590.0,0.21599875]
[1752631845505,1.09171884,117600.0,117590.0,0.38605825]
[1752631847097,1.37620896,117600.0,117590.0,0.38605825]
[1752631847301,1.48300853,117600.0,117590.0,0.38605825]
[1752631848705,1.26800978,117600.0,117590.0,0.38605825]
[1752631848903,1.37620896,117600.0,117590.0,0.38605825]
[1752631849708,0.10508404,117600.0,117590.0,0.961857]
[1752631849906,0.02876521,117600.0,117590.0,1.3920775]
[1752631850104,0.02876521,117600.0,117590.0,1.562137]
[1752631852501,0.18133766,117600.0,117590.0,1.562137]
[1752631854809,0.28810626,117600.0,117590.0,1.562137]
[1752631855009,0.30557881,117600.0,117590.0,1.562137]
[1752631855209,0.19881021,117600.0,117590.0,1.562137]
[1752631855602,0.02876521,117600.0,117590.0,1.562137]
[1752631856309,0.10502049,117600.0,117590.0,1.562137]
[1752631856509,0.27506549,117600.0,117590.0,1.562137]
[1752631857311,0.19881021,117600.0,117590.0,1.562137]
[1752631857712,0.02876521,117600.0,117590.0,1.562137]
[1752631860115,0.10502049,117600.0,117590.0,1.562137]
[1752631860813,0.10275049,117600.0,117590.0,1.562137]
[1752631861114,0.02177521,117600.0,117590.0,1.77713575]
[1752631861411,0.12854381,117600.0,117590.0,1.562137]
[1752631861615,0.1097686,117600.0,117590.0,1.64362775]
[1752631861815,0.1097686,117600.0,117590.0,2.24450775]
[1752631862109,0.1097686,117600.0,117590.0,2.49450775]
[1752631862110,0.003,117600.0,117590.0,2.49450775]
[1752631862818,0.07922379,117600.0,117590.0,2.49450775]
[1752631863006,0.003,117600.0,117590.0,2.42240536]
[1752631865014,0.003,117600.0,117590.0,2.12470536]
[1752631865212,0.003,117600.0,117590.0,1.87470536]
[1752631866317,0.003,117600.0,117590.0,1.3018115]
[1752631866519,0.003,117600.0,117590.0,1.87470536]
[1752631869422,0.003,117600.0,117590.0,1.70463336]
[1752631869718,0.003,117600.0,117590.0,1.87470536]
[1752631870815,0.003,117600.0,117590.0,2.17240536]
[1752631875617,0.003,117600.0,117590.0,1.71540643]
[1752631875618,0.01029,117600.0,117590.0,1.71540643]
[1752631875822,0.01029,117600.0,117590.0,1.11500643]
[1752631875823,0.25655879,117600.0,117590.0,1.11500643]
[1752631876016,0.25655879,117600.0,117590.0,0.75420643]
[1752631876620,0.25655879,117600.0,117590.0,1.35456643]
[1752631876821,0.25646856,117600.0,117590.0,1.05686643]
[1752631877518,0.01029,117600.0,117590.0,1.05686643]
[1752631878326,0.08643818,117600.0,117590.0,1.05686643]
[1752631879718,0.08643818,117600.0,117590.0,0.45650643]
[1752631879914,0.08643818,117600.0,117590.0,1.05674643]
[1752631880625,0.08643818,117600.0,117590.0,0.45650643]
[1752631880822,0.180335,117600.0,117590.0,0.45650643]
[1752631881019,0.541135,117600.0,117590.0,1.05674643]
[1752631881215,0.541135,117600.0,117590.0,0.45650643]
[1752631881216,0.61728318,117600.0,117590.0,0.45650643]
[1752631881419,0.44723818,117600.0,117590.0,1.05670643]
[1752631881619,0.37109,117600.0,117590.0,1.05670643]
[1752631882121,0.6479036,117600.0,117590.0,1.05670643]
[1752631882321,0.4778586,117600.0,117590.0,1.05670643]
[1752631883620,0.55401763,117600.0,117590.0,1.05670643]
[1752631883821,0.37109,117600.0,117590.0,0.45650643]
[1752631884126,0.541135,117600.0,117590.0,1.05670643]
[1752631886528,0.541135,117600.0,117590.0,0.45650643]
[1752631886724,0.541135,117600.0,117590.0,1.05658643]
[1752631886924,0.541135,117600.0,117590.0,0.45650643]
[1752631887126,0.541135,117600.0,117590.0,1.05658643]
[1752631887327,0.541135,117600.0,117590.0,0.7701395]
[1752631887528,0.541135,117600.0,117590.0,1.05658643]
[1752631890532,0.61729403,117600.0,117590.0,1.05658643]
[1752631892030,0.61729403,117600.0,117590.0,0.7701395]
[1752631892231,0.61729403,117600.0,117590.0,1.05658643]
[1752631892934,0.61729403,117600.0,117590.0,1.05646643]
[1752631893728,0.61729403,117600.0,117590.0,0.45650643]
[1752631893935,0.61729403,117600.0,117590.0,1.05638643]
[1752631894233,0.25649403,117600.0,117590.0,1.05638643]
[1752631894935,0.25649403,117600.0,117590.0,0.98488892]
[1752631895840,0.08644903,117600.0,117590.0,1.56063834]
[1752631896028,0.07915903,117600.0,117590.0,1.77558776]
[1752631896228,0.1097686,117600.0,117590.0,1.94565976]
[1752631896726,0.07914147,117600.0,117590.0,1.94565976]
[1752631897134,0.003,117600.0,117590.0,1.94565976]
[1752631897534,0.12545152,117610.0,117600.0,0.170045]
[1752631897729,0.12545152,117610.0,117600.0,1.17569326]
[1752631897934,0.01868292,117610.0,117600.0,1.17569326]
[1752631898236,0.12545152,117610.0,117600.0,1.17569326]
[1752631898632,0.1067686,117610.0,117600.0,1.24364241]
[1752631898838,0.1067686,117610.0,117600.0,1.41370641]
[1752631899039,0.17629812,117630.0,117610.0,0.1700305]
[1752631899040,0.1067686,117620.0,117610.0,0.1700305]
[1752631899338,0.1067686,117620.0,117610.0,1.43393843]
[1752631899535,0.12596427,117630.0,117620.0,0.1700161]
[1752631899839,0.12596427,117630.0,117620.0,0.81719735]
[1752631901139,0.12596427,117630.0,117620.0,0.82600634]
[1752631901334,0.12596427,117630.0,117620.0,0.81719735]
[1752631902040,0.12696427,117630.0,117620.0,0.82219735]
[1752631903638,0.02019567,117630.0,117620.0,0.82219735]
[1752631904638,0.02019567,117630.0,117620.0,0.81719735]
[1752631909439,0.02019567,117630.0,117620.0,0.8285161]
[1752631909637,0.02019567,117630.0,117620.0,1.11489735]
[1752631909840,0.02019567,117630.0,117620.0,0.81719735]
[1752631910942,0.02472567,117630.0,117620.0,1.41639735]
[1752631914542,0.02472567,117630.0,117620.0,0.81719735]
[1752631914845,0.02472567,117630.0,117620.0,1.1298561]
[1752631914846,0.19716727,117630.0,117620.0,1.1298561]
[1752631915045,0.19716727,117630.0,117620.0,1.41623735]
[1752631915745,0.02716567,117630.0,117620.0,1.41619735]
[1752631920152,0.02716567,117630.0,117620.0,0.81719735]
[1752631920351,0.02716567,117630.0,117620.0,1.41607735]
[1752631923160,0.02472567,117630.0,117620.0,1.41607735]
[1752631925355,0.02019567,117630.0,117620.0,1.41607735]
[1752631927464,0.09616255,117630.0,117620.0,1.41607735]
[1752631928364,0.09616255,117630.0,117620.0,1.39672153]
[1752631929770,0.02019567,117630.0,117620.0,1.39672153]
[1752631931672,0.02019567,117630.0,117620.0,0.79784153]
[1752631931862,0.02019567,117630.0,117620.0,1.39632153]
[1752631932061,0.02019567,117630.0,117620.0,0.79784153]
[1752631932272,0.02019567,117630.0,117620.0,1.39628153]
[1752631932962,0.02019567,117630.0,117620.0,1.69398153]
[1752631937073,0.02019567,117630.0,117620.0,1.09554153]
[1752631937276,0.02019567,117630.0,117620.0,1.69382153]
[1752631939571,0.09616255,117630.0,117620.0,1.69382153]
[1752631940174,0.10319255,117630.0,117620.0,1.69370153]
[1752631940371,0.10319255,117630.0,117620.0,1.09554153]
[1752631940574,0.10319255,117630.0,117620.0,1.69370153]
[1752631941075,0.19722727,117630.0,117620.0,1.69370153]
[1752631941276,0.10347506,117630.0,117620.0,1.69366153]
[1752631941574,0.10347339,117630.0,117620.0,1.69366153]
[1752631941975,0.02722567,117630.0,117620.0,1.69366153]
[1752631943273,0.02722567,117630.0,117620.0,1.09554153]
[1752631943571,0.02722567,117630.0,117620.0,1.69362153]
[1752631944473,0.13399427,117630.0,117620.0,1.69362153]
[1752631944877,0.13399427,117630.0,117620.0,1.39592153]
[1752631947382,0.02722567,117630.0,117620.0,1.39584153]
[1752631951386,0.02722567,117630.0,117620.0,1.03504153]
[1752631951588,0.02722567,117630.0,117620.0,1.39584153]
[1752631952190,0.19722717,117630.0,117620.0,0.79784153]
[1752631952379,0.19722717,117630.0,117620.0,1.39564153]
[1752631952585,0.170016,117620.0,117610.0,0.43090423]
[1752631952791,0.177236,117620.0,117610.0,0.91229958]
[1752631952985,0.32980845,117620.0,117610.0,0.24216664]
[1752631953183,0.32980845,117620.0,117610.0,0.88243344]
[1752631953886,0.177236,117620.0,117610.0,1.16881469]
[1752631954588,0.32980845,117620.0,117610.0,1.16881469]
[1752631954989,0.33080845,117620.0,117610.0,1.17081469]
[1752631955190,0.16079245,117620.0,117610.0,1.17081469]
[1752631955786,0.33080855,117620.0,117610.0,1.17081469]
[1752631956593,0.4374408,117620.0,117610.0,1.17081469]
[1752631957087,0.28486835,117620.0,117610.0,1.17081469]
[1752631957288,0.08438592,117620.0,117610.0,1.17081469]
[1752631957488,0.25440202,117620.0,117610.0,1.17081469]
[1752631962296,0.25440202,117620.0,117610.0,0.53054789]
[1752631962593,0.25440202,117620.0,117610.0,1.12806789]
[1752631962992,0.25440202,117620.0,117610.0,0.53054789]
[1752631963192,0.82541735,117620.0,117610.0,0.002]
[1752631963393,0.9320496,117620.0,117610.0,0.59944]
[1752631963692,1.1020976,117620.0,117610.0,0.002]
[1752631964892,1.1020976,117620.0,117600.0,0.8099559]
[1752631964893,0.1772505,117610.0,117600.0,0.8099559]
[1752631965195,0.61418222,117610.0,117600.0,0.8099559]
[1752631966099,0.61518222,117610.0,117600.0,0.8179559]
[1752631966492,0.25438222,117610.0,117600.0,0.8179559]
[1752631966697,0.1782505,117610.0,117600.0,0.8179559]
[1752631967795,0.28488275,117610.0,117600.0,0.8179559]
[1752631968200,0.28488275,117610.0,117600.0,1.10433715]
[1752631968700,0.28488275,117610.0,117600.0,1.06182605]
[1752631968899,0.28488275,117610.0,117600.0,0.7754448]
[1752631970099,0.11485225,117610.0,117600.0,0.1780448]
[1752631970302,0.11485225,117610.0,117600.0,0.7752848]
[1752631971502,0.00822,117610.0,117600.0,0.7752848]
[1752631972404,0.00822,117610.0,117600.0,1.1360848]
[1752631973807,0.00822,117610.0,117600.0,0.5388448]
[1752631974000,0.00822,117610.0,117600.0,1.1360048]
[1752631974196,0.00822,117610.0,117600.0,1.1359648]
[1752631975906,0.00822,117610.0,117600.0,1.135965]
[1752631976306,0.1782505,117610.0,117600.0,0.3688]
[1752631976509,0.46463175,117610.0,117600.0,0.60504]
[1752631977598,0.54074838,117610.0,117600.0,0.60504]
[1752631978110,0.25436713,117610.0,117600.0,0.60504]
[1752631978305,0.54074838,117610.0,117600.0,0.008]
[1752631978509,0.46463175,117610.0,117600.0,0.008]
[1752631980312,0.571264,117610.0,117600.0,0.008]
[1752631980706,0.28488275,117610.0,117600.0,0.178045]
[1752631980912,0.28488275,117610.0,117600.0,0.008]
[1752631981916,0.571264,117610.0,117600.0,0.178045]
[1752631982215,0.571264,117610.0,117600.0,0.008]
[1752631983515,0.59009019,117610.0,117600.0,0.178045]
[1752631984219,0.59009019,117610.0,117600.0,0.008]
[1752631985115,0.30370894,117610.0,117600.0,0.1780451]
[1752631987410,0.19707669,117610.0,117600.0,0.15868257]
[1752631987613,0.34964914,117610.0,117600.0,0.15868257]
[1752631988417,0.75295754,117610.0,117590.0,1.5585865]
[1752631988620,0.00474,117600.0,117590.0,1.5585865]
[1752631988818,0.00716,117600.0,117590.0,1.5585865]
[1752631990123,0.00716,117600.0,117590.0,1.48620246]
[1752631990422,0.00716,117600.0,117590.0,1.52871686]
[1752631990622,0.00474,117600.0,117590.0,1.52871686]
[1752631991321,0.00474,117600.0,117590.0,1.52971686]
[1752631992124,0.01474,117600.0,117590.0,1.52971686]
[1752631994124,0.16731245,117600.0,117590.0,1.52971686]
[1752631994624,0.17606927,117600.0,117590.0,1.52971686]
[1752631996021,0.16706927,117600.0,117590.0,1.52971686]
[1752631997225,0.12140008,117600.0,117590.0,1.52971686]
[1752631997914,0.001,117600.0,117590.0,1.52971686]
[1752631998318,0.07736037,117600.0,117590.0,1.81609811]
[1752631998520,0.07736037,117600.0,117590.0,1.52971686]
[1752631998921,0.001,117600.0,117590.0,1.52971686]
[1752631999121,0.07735827,117600.0,117590.0,1.52971686]
[1752631999315,0.07735827,117600.0,117590.0,1.24333561]
[1752631999517,0.07735827,117600.0,117590.0,1.52971686]
[1752632001215,0.001,117600.0,117590.0,1.52971686]
[1752632002127,0.07734625,117600.0,117590.0,1.52971686]
[1752632002721,0.001,117600.0,117590.0,1.52971686]
[1752632003630,0.10790326,117600.0,117590.0,1.52971686]
[1752632006933,0.001,117600.0,117590.0,1.52971686]
[1752632010333,0.001,117600.0,117590.0,1.16891686]
[1752632010534,0.001,117600.0,117590.0,1.52971686]
[1752632011534,0.00589,117600.0,117590.0,1.52971686]
[1752632013034,0.001,117600.0,117590.0,1.52971686]
[1752632014534,0.10790326,117600.0,117590.0,1.52971686]
[1752632016035,0.11279326,117600.0,117590.0,1.52971686]
[1752632018135,0.10790326,117600.0,117590.0,1.52971686]
[1752632018932,0.10790326,117600.0,117590.0,1.67313169]
[1752632020432,0.07733844,117600.0,117590.0,1.67313169]
[1752632020632,0.001,117600.0,117590.0,1.67313169]
[1752632020834,0.07733844,117600.0,117590.0,1.67313169]
[1752632023337,0.001,117600.0,117590.0,1.67313169]
[1752632023835,0.07733985,117600.0,117590.0,1.67313169]
[1752632024142,0.14149748,117610.0,117600.0,0.1700451]
[1752632024341,0.14149748,117610.0,117600.0,0.96064118]
[1752632024741,0.13908748,117610.0,117600.0,0.96064118]
[1752632024940,0.13419748,117610.0,117600.0,0.96064118]
[1752632025345,0.14108748,117610.0,117600.0,0.96164118]
[1752632025939,0.12772081,117610.0,117600.0,0.96164118]
[1752632026135,0.12772081,117610.0,117600.0,1.17653922]
[1752632026740,0.10890326,117610.0,117600.0,1.19389907]
[1752632027645,0.10890326,117610.0,117600.0,1.49159907]
[1752632027943,0.10890326,117610.0,117600.0,1.87194103]
[1752632028145,0.1174462,117610.0,117600.0,1.87194103]
[1752632028440,0.10890326,117610.0,117600.0,1.87194103]
[1752632028644,0.10890326,117610.0,117600.0,2.08683907]
[1752632033448,0.002,117610.0,117600.0,2.08683907]
[1752632034141,0.07830876,117610.0,117600.0,2.08683907]
[1752632034341,0.002,117610.0,117600.0,2.08683907]
[1752632034643,0.002,117610.0,117600.0,1.49159907]
[1752632034843,0.002,117610.0,117600.0,2.08655907]
[1752632035848,0.0783067,117610.0,117600.0,2.08655907]
[1752632037349,0.002,117610.0,117600.0,2.08655907]
[1752632037543,0.10890326,117610.0,117600.0,2.08655907]
[1752632037744,0.07830627,117610.0,117600.0,2.08655907]
[1752632039047,0.07830627,117610.0,117600.0,3.58655907]
[1752632045055,0.07830627,117610.0,117600.0,2.99159907]
[1752632045250,0.03108997,117610.0,117600.0,3.93323319]
[1752632045453,0.10690326,117620.0,117610.0,0.1700306]
[1752632045653,0.10690326,117620.0,117610.0,1.77008472]
[1752632045854,0.13036092,117630.0,117620.0,0.1700161]
[1752632046049,0.13036092,117630.0,117620.0,1.17551022]
[1752632047657,0.02945766,117630.0,117620.0,1.17651022]
[1752632048061,0.02467766,117630.0,117620.0,1.17651022]
[1752632048760,0.02467766,117630.0,117620.0,1.18497006]
[1752632049462,0.006,117630.0,117620.0,1.18497006]
[1752632049662,0.006,117630.0,117620.0,1.17651022]
[1752632050159,0.006,117630.0,117620.0,1.19387756]
[1752632050962,0.01078,117630.0,117620.0,0.97897952]
[1752632051161,0.01078,117630.0,117620.0,1.57329952]
[1752632052067,0.006,117630.0,117620.0,1.57329952]
[1752632053967,0.01317,117630.0,117620.0,1.57325952]
[1752632054366,0.08934318,117630.0,117620.0,1.57325952]
[1752632057071,0.08934318,117630.0,117620.0,1.42988503]
[1752632059573,0.08934318,117630.0,117620.0,0.83560503]
[1752632059973,0.08934318,117630.0,117620.0,1.42964503]
[1752632061576,0.08934318,117630.0,117620.0,1.14322344]
[1752632061777,0.25934478,117630.0,117620.0,0.83560503]
[1752632061976,0.01317,117630.0,117620.0,1.42956503]
[1752632062279,0.08934318,117630.0,117620.0,0.83560503]
[1752632062577,0.08934318,117630.0,117620.0,1.14314344]
[1752632062876,0.08934318,117630.0,117620.0,1.14310344]
[1752632063282,0.08934318,117630.0,117620.0,0.54918344]
[1752632063884,0.08934318,117630.0,117620.0,1.42948503]
[1752632065485,0.01317,117630.0,117620.0,1.42948503]
[1752632066284,0.08934318,117630.0,117620.0,1.42948503]
[1752632066685,0.01317,117630.0,117620.0,1.42948503]
[1752632067983,0.01317,117630.0,117620.0,1.42940503]
[1752632070191,0.01317,117630.0,117620.0,1.14298344]
[1752632070490,0.1831714,117630.0,117620.0,1.42940503]
[1752632070991,0.01317,117630.0,117620.0,1.42940503]
[1752632071391,0.01317,117630.0,117620.0,1.14298344]
[1752632071694,0.01317,117630.0,117620.0,1.41203769]
[1752632071895,0.01317,117630.0,117620.0,1.41191769]
[1752632072793,0.08934318,117630.0,117620.0,1.41191769]
[1752632075487,0.08934318,117630.0,117620.0,1.41187769]
[1752632075687,0.08934318,117630.0,117620.0,0.81823769]
[1752632075891,0.08934318,117630.0,117620.0,1.41179769]
[1752632076998,0.01317,117630.0,117620.0,1.41179769]
[1752632077297,0.01317,117630.0,117620.0,1.41175769]
[1752632078498,0.16574245,117630.0,117620.0,1.41175769]
[1752632078794,0.15857245,117630.0,117620.0,1.41175769]
[1752632078998,0.15857245,117630.0,117620.0,1.55489852]
[1752632079200,0.15857245,117630.0,117620.0,1.76967973]
[1752632079393,0.006,117630.0,117620.0,1.76967973]
[1752632079599,0.006,117630.0,117620.0,1.55489852]
[1752632080998,0.006,117630.0,117620.0,1.41171547]
[1752632085799,0.11284036,117630.0,117620.0,1.41171547]
[1752632087206,0.18915864,117630.0,117620.0,1.41171547]
[1752632087506,0.08231828,117630.0,117620.0,1.41171547]
[1752632090508,0.08231828,117630.0,117620.0,0.81819547]
[1752632090807,0.08231828,117630.0,117620.0,1.41131547]
[1752632092407,0.006,117630.0,117620.0,1.41131547]
[1752632093407,0.006,117630.0,117620.0,1.1249361]
[1752632093606,0.006,117630.0,117620.0,1.41131547]
[1752632095807,0.006,117630.0,117620.0,1.05051547]
[1752632096012,0.006,117630.0,117620.0,1.77211547]
[1752632098409,0.006,117630.0,117620.0,1.17899547]
[1752632098604,0.006,117630.0,117620.0,1.77191547]
[1752632098914,0.006,117630.0,117620.0,1.77183547]
[1752632099207,0.08231828,117630.0,117620.0,1.77183547]
[1752632101418,0.08231828,117630.0,117620.0,1.77175547]
[1752632102918,0.08231828,117630.0,117620.0,1.91494948]
[1752632103312,0.47456647,117630.0,117620.0,0.3618]
[1752632103615,0.75904819,117630.0,117620.0,0.59376]
[1752632103812,0.177476,117620.0,117610.0,0.212526]
[1752632104013,0.49413236,117620.0,117610.0,0.38481709]
[1752632104217,0.49912236,117620.0,117610.0,0.97749709]
[1752632104519,0.39227089,117620.0,117610.0,0.97749709]
[1752632105018,0.1774842,117620.0,117610.0,0.7627104]
[1752632105414,0.1774842,117620.0,117610.0,0.7637104]
[1752632105714,0.1814842,117620.0,117610.0,0.7637104]
[1752632106420,0.1794842,117620.0,117610.0,0.7637104]
[1752632107017,0.4660232,117620.0,117610.0,0.7637104]
[1752632107817,1.2468712,117620.0,117610.0,0.001]
[1752632108025,0.9603322,117620.0,117610.0,0.1710305]
[1752632108212,1.2468712,117620.0,117610.0,0.1710305]
[1752632108522,0.7103322,117620.0,117610.0,0.15166873]
[1752632108716,0.00946,117620.0,117610.0,0.43820773]
[1752632108922,0.11606678,117620.0,117610.0,0.79900773]
[1752632109816,0.00946,117620.0,117610.0,0.79900773]
[1752632110223,0.11606678,117620.0,117610.0,0.79900773]
[1752632111316,0.08312003,117620.0,117610.0,0.79900773]
[1752632111521,0.002,117620.0,117610.0,0.79900773]
[1752632112324,0.07812238,117620.0,117610.0,0.79900773]
[1752632112727,0.07812238,117620.0,117610.0,0.51246873]
[1752632112933,0.07812238,117620.0,117610.0,0.79900773]
[1752632113225,0.08311238,117620.0,117610.0,0.79900773]
[1752632117334,0.00699,117620.0,117610.0,0.79900773]
[1752632118234,0.00699,117620.0,117610.0,0.51246873]
[1752632118434,0.00699,117620.0,117610.0,0.79900773]
[1752632118629,0.11359678,117620.0,117610.0,0.79900773]
[1752632119136,0.11606678,117620.0,117610.0,0.79900773]
[1752632121330,0.11359678,117620.0,117610.0,0.79900773]
[1752632122222,0.00699,117620.0,117610.0,0.79900773]
[1752632123832,0.08312981,117620.0,117610.0,0.79900773]
[1752632125436,0.07813981,117620.0,117610.0,0.79900773]
[1752632125836,0.10860678,117620.0,117610.0,0.79900773]
[1752632128034,0.10860678,117620.0,117610.0,1.39120773]
[1752632129039,0.002,117620.0,117610.0,1.39995648]
[1752632129238,0.07820408,117620.0,117610.0,1.39995648]
[1752632129940,0.0782016,117620.0,117610.0,1.39995648]
[1752632131135,0.0782016,117620.0,117610.0,1.69765648]
[1752632131438,0.0515737,117620.0,117610.0,1.69765648]
[1752632133236,0.10660678,117630.0,117620.0,0.1700158]
[1752632133539,0.10660678,117630.0,117620.0,0.8173548]
[1752632133941,0.11120678,117630.0,117620.0,0.8173548]
[1752632134138,0.02307728,117630.0,117620.0,1.1150548]
[1752632134339,8e-08,117630.0,117620.0,1.1150548]
[1752632134737,8e-08,117630.0,117620.0,1.1200548]
[1752632135042,8e-08,117630.0,117620.0,0.8335158]
[1752632135846,0.24731546,117650.0,117640.0,0.1699869]
[1752632136142,0.24731546,117650.0,117640.0,1.7701259]
[1752632136536,0.09474301,117650.0,117640.0,1.7701259]
[1752632137843,0.09574301,117650.0,117640.0,1.7721259]
[1752632138041,0.10441341,117650.0,117640.0,1.7721259]
[1752632140641,3e-08,117650.0,117640.0,1.7721259]
[1752632140941,0.15966245,117670.0,117660.0,0.1699581]
[1752632141142,0.25966245,117670.0,117660.0,1.4091371]
[1752632141347,0.10709,117670.0,117660.0,1.4091371]
[1752632141748,0.00709,117670.0,117660.0,1.4091371]
[1752632142549,0.00809,117670.0,117660.0,1.1265581]
[1752632142744,0.07606556,117670.0,117660.0,1.4130971]
[1752632142944,0.00809,117670.0,117660.0,1.4130971]
[1752632143148,0.01650781,117670.0,117660.0,1.4130971]
[1752632143945,0.01650781,117670.0,117660.0,1.4110971]
[1752632144950,0.12315992,117670.0,117660.0,1.4110971]
[1752632145539,0.57964252,117670.0,117660.0,0.7636781]
[1752632145745,0.29310352,117670.0,117660.0,0.7636781]
[1752632146050,0.12309467,117670.0,117660.0,1.1244781]
[1752632146250,0.12309467,117670.0,117660.0,1.4110171]
[1752632146450,0.29303827,117670.0,117660.0,1.4110171]
[1752632146951,0.36148662,117670.0,117660.0,1.0502171]
[1752632147150,0.36148662,117670.0,117660.0,0.7636781]
[1752632147345,0.25489976,117670.0,117660.0,0.7636781]
[1752632148953,0.25489976,117670.0,117660.0,1.0502171]
[1752632149254,0.25489976,117670.0,117660.0,1.4110171]
[1752632149546,0.25489976,117670.0,117660.0,0.4584971]
[1752632149748,0.25489976,117670.0,117660.0,1.0501371]
[1752632149948,0.25489976,117670.0,117660.0,1.4109371]
[1752632150151,0.25489976,117670.0,117660.0,1.0500971]
[1752632150350,0.25489976,117670.0,117660.0,0.7635581]
[1752632152753,0.25489976,117670.0,117660.0,0.1719581]
[1752632152951,1.00886029,117670.0,117660.0,0.7635181]
[1752632153150,1.00886029,117670.0,117660.0,0.59356]
[1752632153346,1.00886029,117670.0,117660.0,0.59352]
[1752632153552,0.64806029,117670.0,117660.0,0.7634781]
[1752632153754,0.25489976,117670.0,117660.0,0.7634781]
[1752632153954,0.90223876,117670.0,117660.0,0.7634781]
[1752632154346,0.90223876,117670.0,117660.0,0.59352]
[1752632154547,0.90223876,117670.0,117660.0,0.002]
[1752632154950,1.47478721,117670.0,117660.0,0.002]
[1752632155153,0.177077,117640.0,117630.0,0.2551873]
[1752632155351,0.25326181,117640.0,117630.0,0.8465073]
[1752632155754,0.177077,117640.0,117630.0,1.1330463]
[1752632156258,0.28373574,117640.0,117630.0,1.1330463]
[1752632157154,0.28473574,117640.0,117630.0,1.1340463]
[1752632157557,0.28473574,117640.0,117630.0,0.5425263]
[1752632157861,0.28473574,117640.0,117630.0,0.8474673]
[1752632158461,0.28373574,117640.0,117630.0,0.2124878]
[1752632158757,0.28873574,117640.0,117630.0,0.7625089]
[1752632158964,0.182077,117640.0,117630.0,0.1710009]
[1752632159162,0.182077,117640.0,117630.0,0.7625209]
[1752632159359,0.01209,117640.0,117630.0,1.1233209]
[1752632159559,0.28878729,117640.0,117630.0,1.1233209]
[1752632159859,0.28878729,117640.0,117630.0,1.4098599]